bitfinex-derivatives/quotes_SOLF0:USTF0_20250818
["timestamp","ask_amount","ask_price","bid_price","bid_amount"]
[1755507965306,2.96,180.54,180.46,4.57286961]
[1755507965509,2.96,180.54,180.53,0.03854076]
[1755507965707,2.96,180.54,180.5,3.18]
[1755507965911,5.536,180.54,180.51,3.18]
[1755507966109,2.96,180.52,180.51,3.18]
[1755507967808,2.96,180.59,180.51,3.18]
[1755507968009,2.96,180.59,180.52,4.57286961]
[1755507968204,2.96,180.59,180.53,3.18]
[1755507968404,8.4943,180.59,180.53,3.18]
[1755507968812,8.4943,180.59,180.56,5.5352]
[1755507968813,2.96,180.59,180.56,5.5352]
[1755507968999,110.84538982,180.61,180.57,3.18]
[1755507969204,110.84538982,180.61,180.48,4.57286961]
[1755507969205,2.96,180.6,180.54,0.03920968]
[1755507969400,2.96,180.58,180.55,3.18]
[1755507969605,2.96,180.63,180.55,3.18]
[1755507970006,2.96,180.63,180.55,3.21902954]
[1755507970208,5.5345,180.59,180.55,3.21902954]
[1755507970409,2.96,180.58,180.55,0.03902954]
[1755507971104,8.4952,180.56,180.55,0.03902954]
[1755507971310,2.96,180.56,180.55,3.21902954]
[1755507971498,2.96,180.57,180.56,3.18]
[1755507972005,2.96,180.57,180.55,0.03902954]
[1755507973210,5.5352,180.56,180.55,0.03902954]
[1755507973410,8.4952,180.56,180.55,0.03902954]
[1755507973611,2.96,180.56,180.55,0.03902954]
[1755507974311,8.4952,180.56,180.55,0.03902954]
[1755507977912,8.4952,180.56,180.5,5.5369]
[1755507977913,5.5366,180.52,180.49,3.18]
[1755507978309,8.4966,180.52,180.49,3.18]
[1755507978511,2.96,180.51,180.49,3.18]
[1755507978820,8.4967,180.51,180.5,3.18]
[1755507979111,2.96,180.58,180.47,3.18]
[1755507979310,21.19286961,180.59,180.47,3.18]
[1755507979311,2.96,180.5,180.47,3.18]
[1755507979512,5.537,180.51,180.47,3.18]
[1755507979712,8.497,180.51,180.47,3.18]
[1755507980012,5.57251264,180.52,180.47,3.18]
[1755507980313,8.53251264,180.52,180.47,3.18]
[1755507981016,2.96,180.51,180.48,5.5373]
[1755507981210,2.96,180.51,180.49,3.18]
[1755507981404,2.96,180.51,180.5,3.18]
[1755507981608,8.4967,180.51,180.5,3.18]
[1755507981910,0.03601264,180.52,180.46,4.57286961]
[1755507982204,2.99601264,180.52,180.51,3.18]
[1755507982818,3.18,180.51,180.47,5.5378]
[1755507983016,3.18,180.51,180.48,2.95]
[1755507983211,8.7168,180.51,180.48,2.95]
[1755507983417,3.18,180.53,180.48,2.95]
[1755507983817,0.03496465,180.51,180.48,2.95]
[1755507984615,97.41439671,180.62,180.5,2.95]
[1755507984919,3.18,180.6,180.53,2.95]
[1755507985216,5.5347,180.58,180.53,5.5358]
[1755507985414,3.18,180.57,180.54,2.95]
[1755507985614,3.18,180.56,180.55,2.95]
[1755507986211,8.7145,180.58,180.55,2.95]
[1755507986410,3.18,180.61,180.55,7.52286961]
[1755507986611,3.18,180.6,180.56,2.95]
[1755507987013,3.18,180.6,180.56,8.485]
[1755507987211,8.7139,180.6,180.57,2.95]
[1755507987414,3.18,180.59,180.57,2.95]
[1755507987814,3.18,180.59,180.58,2.95]
[1755507989508,5.5337,180.61,180.56,5.535]
[1755507989714,3.18,180.59,180.58,2.95]
[1755507990415,3.18,180.59,180.57,0.04163531]
[1755507991216,8.7144,180.59,180.57,0.04163531]
[1755507991618,5.5344,180.59,180.57,0.04163531]
[1755507991817,8.7145,180.58,180.57,0.04163531]
[1755507994919,3.18,180.58,180.57,2.99163531]
[1755507995119,5.5343,180.59,180.58,2.95]
[1755507995320,3.18,180.58,180.57,2.99163531]
[1755507996017,3.18,180.6,180.57,2.99163531]
[1755507996220,3.18,180.64,180.57,2.99163531]
[1755507996519,5.5341,180.6,180.57,2.99163531]
[1755507996719,3.18,180.58,180.57,2.99163531]
[1755507997209,3.18,180.59,180.57,0.04163531]
[1755507997410,3.18,180.64,180.57,2.99163531]
[1755507997612,5.5345,180.59,180.57,2.99163531]
[1755507998014,3.18,180.58,180.57,2.99163531]
[1755507998214,3.18,180.64,180.57,2.99163531]
[1755507998414,4.13297297,180.63,180.57,2.99163531]
[1755507998618,3.18,180.61,180.57,2.99163531]
[1755507998916,3.18,180.59,180.58,2.95]
[1755507999317,8.7143,180.59,180.58,2.95]
[1755507999526,3.18,180.58,180.57,2.99163531]
[1755507999819,5.5344,180.59,180.57,2.99163531]
[1755508000022,8.7144,180.59,180.58,2.95]
[1755508000528,8.7145,180.58,180.57,2.99163531]
[1755508001424,3.18,180.58,180.57,2.99163531]
[1755508001613,5.5344,180.59,180.57,2.99163531]
[1755508001818,8.7144,180.59,180.57,2.99163531]
[1755508002019,8.7144,180.59,180.57,0.04163531]
[1755508002221,8.7144,180.59,180.58,2.95]
[1755508002922,5.5345,180.58,180.57,0.04163531]
[1755508003120,3.18,180.58,180.57,2.99163531]
[1755508003321,137.08,180.65,180.57,0.04163531]
[1755508003521,137.08,180.65,180.58,2.95]
[1755508003522,8.7144,180.59,180.58,2.95]
[1755508006123,8.7145,180.58,180.57,0.04163531]
[1755508010827,8.7145,180.58,180.57,2.99163531]
[1755508011025,8.7145,180.58,180.57,0.04163531]
[1755508013729,8.7145,180.58,180.57,3.14163531]
[1755508015132,8.7145,180.58,180.57,0.04163531]
[1755508016236,8.7145,180.58,180.57,3.14163531]
[1755508017035,8.7145,180.58,180.57,0.04163531]
[1755508017536,12.85163417,180.58,180.57,3.531e-05]
[1755508017739,3.0,180.53,180.5,3.1]
[1755508017936,3.0,180.53,180.51,3.1]
[1755508018135,137.06,180.58,180.51,3.1]
[1755508018334,3.0,180.52,180.51,3.1]
[1755508021137,0.03516043,180.53,180.51,3.1]
[1755508021743,3.03516043,180.53,180.52,3.1]
[1755508022547,3.03516043,180.53,180.5,3.1]
[1755508022749,0.03516043,180.53,180.51,3.1]
[1755508023046,3.0,180.52,180.51,3.1]
[1755508024251,3.0,180.52,180.48,3.1]
[1755508024844,3.0,180.52,180.49,3.1]
[1755508025045,3.04264913,180.52,180.45,3.1]
[1755508025447,3.0,180.52,180.45,3.1]
[1755508025951,5.5382,180.47,180.45,3.1]
[1755508026149,0.03940662,180.5,180.38,0.96432283]
[1755508026352,0.03940662,180.5,180.25,38.39283995]
[1755508026353,3.0,180.49,180.43,3.1]
[1755508026750,3.0,180.54,180.43,3.1]
[1755508026952,0.03968542,180.48,180.43,3.1]
[1755508027251,5.5383,180.46,180.43,3.1]
[1755508027444,8.5383,180.46,180.43,3.1]
[1755508027644,3.0,180.46,180.43,3.1]
[1755508027850,5.5388,180.45,180.43,3.1]
[1755508030054,3.0,180.46,180.43,3.1]
[1755508030249,0.03968542,180.48,180.43,3.1]
[1755508030452,3.0,180.45,180.43,3.1]
[1755508030650,5.5389,180.44,180.42,4.57286961]
[1755508030947,3.0,180.47,180.42,4.57286961]
[1755508031145,5.5392,180.43,180.42,7.67286961]
[1755508031849,8.57632015,180.44,180.42,7.67286961]
[1755508032048,3.03732015,180.44,180.42,4.57286961]
[1755508032253,3.03732015,180.44,180.43,3.1]
[1755508032454,8.57612015,180.44,180.43,3.1]
[1755508034053,11.0715,180.55,180.46,3.1]
[1755508034266,3.0,180.54,180.46,3.1]
[1755508034558,5.5379,180.47,180.46,3.1]
[1755508038156,8.5377,180.48,180.46,3.1]
[1755508038565,5.5377,180.48,180.46,3.1]
[1755508038960,5.5379,180.47,180.46,3.1]
[1755508040158,5.5379,180.47,180.45,0.03672567]
[1755508040363,5.5379,180.47,180.46,3.1]
[1755508041365,3.0,180.48,180.46,3.1]
[1755508041767,3.0,180.54,180.46,3.1]
[1755508042564,3.0,180.54,180.48,0.03896666]
[1755508043362,3.0,180.54,180.48,2.90896666]
[1755508045672,3.0,180.54,180.48,0.03896666]
[1755508048872,5.5373,180.49,180.48,0.03896666]
[1755508049174,5.5373,180.49,180.48,2.90896666]
[1755508049773,8.4773,180.49,180.48,2.90896666]
[1755508050278,5.5373,180.49,180.48,2.90896666]
[1755508051275,8.4773,180.49,180.48,2.90896666]
[1755508052574,5.5373,180.49,180.48,0.03896666]
[1755508052775,8.4773,180.49,180.48,2.90896666]
[1755508053174,8.4773,180.49,180.48,0.03896666]
[1755508053378,8.4773,180.49,180.48,2.90896666]
[1755508056786,8.4773,180.49,180.48,0.03896666]
[1755508058885,8.4773,180.49,180.48,2.90896666]
[1755508059687,8.4773,180.49,180.48,0.03896666]
[1755508060280,8.4773,180.49,180.48,6.666e-05]
[1755508065491,12.64202986,180.49,180.48,6.666e-05]
[1755508066080,2.94,180.48,180.38,4.57286961]
[1755508066286,2.94,180.47,180.38,4.57286961]
[1755508066593,5.5386,180.45,180.42,5.5393]
[1755508066892,139.96,180.51,180.44,4.57286961]
[1755508067088,5.5377,180.48,180.45,5.5384]
[1755508067292,0.03858362,180.49,180.44,4.57286961]
[1755508067492,2.97858362,180.49,180.44,4.57286961]
[1755508067695,2.94,180.49,180.44,4.57286961]
[1755508068096,0.03694378,180.48,180.45,2.87]
[1755508068294,2.97694378,180.48,180.45,2.87]
[1755508068594,5.5381,180.47,180.45,2.87]
[1755508068999,5.57464378,180.48,180.46,2.87]
[1755508069393,0.03694378,180.48,180.46,2.87]
[1755508069693,0.03694378,180.48,180.46,5.538]
[1755508069894,2.94,180.52,180.47,4.57286961]
[1755508070095,2.94,180.57,180.5,4.57286961]
[1755508070298,7.13555601,180.56,180.52,2.87]
[1755508070491,509.2,180.6,180.52,2.87]
[1755508070696,2.94,180.53,180.5,2.87]
[1755508070997,5.5369,180.51,180.48,4.57286961]
[1755508071599,5.5369,180.51,180.49,2.87]
[1755508072903,2.94,180.53,180.5,3.17]
[1755508074000,2.94,180.53,180.47,5.5377]
[1755508074194,509.2,180.6,180.49,3.17]
[1755508074408,2.99,180.52,180.49,3.17]
[1755508075405,2.99,180.51,180.49,3.17]
[1755508075600,2.99,180.51,180.48,4.57286961]
[1755508075601,2.99,180.51,180.5,3.17]
[1755508076606,525.82,180.6,180.5,3.17]
[1755508076907,2.99,180.52,180.51,3.17]
[1755508078008,8.5266,180.52,180.51,3.17]
[1755508080007,509.2,180.6,180.48,4.57286961]
[1755508080206,2.99,180.58,180.55,3.17]
[1755508080407,2.99,180.58,180.54,4.57286961]
[1755508080408,2.99,180.6,180.57,4.57286961]
[1755508080606,2.99,180.62,180.59,3.17]
[1755508081106,2.99,180.61,180.6,3.17]
[1755508081506,2.99,180.61,180.58,3.17]
[1755508081716,2.99,180.6,180.58,3.17]
[1755508082005,2.99,180.6,180.59,3.17]
[1755508082910,2.99,180.65,180.59,3.17]
[1755508083110,2.99,180.65,180.61,3.17]
[1755508083912,2.99,180.65,180.58,4.57286961]
[1755508084112,2.99,180.65,180.58,3.17]
[1755508084418,2.99,180.63,180.55,4.57286961]
[1755508084616,2.99,180.63,180.54,3.17]
[1755508084911,2.99,180.61,180.54,3.17]
[1755508086909,2.99,180.61,180.52,7.74286961]
[1755508087113,4.15382313,180.6,180.46,4.57286961]
[1755508087306,2.99,180.58,180.5,3.17]
[1755508093019,2.99,180.58,180.51,3.17]
[1755508097825,2.99,180.58,180.52,4.57286961]
[1755508098020,2.99,180.6,180.53,3.17]
[1755508099224,4.15442096,180.59,180.53,3.17]
[1755508099524,2.99,180.58,180.53,3.17]
[1755508100725,2.99,180.58,180.51,5.5367]
[1755508100928,2.99,180.58,180.48,4.57286961]
[1755508101130,2.99,180.58,180.49,3.17]
[1755508102030,2.99,180.58,180.5,5.5369]
[1755508102221,2.99,180.58,180.51,3.01]
[1755508103023,2.99,180.58,180.52,3.01]
[1755508103629,2.99,180.58,180.53,3.01]
[1755508103833,2.99,180.58,180.52,5.5363]
[1755508104024,2.99,180.58,180.54,3.01]
[1755508104220,2.99,180.58,180.55,3.01]
[1755508104424,2.88,180.64,180.55,3.01]
[1755508104625,20.7750692,180.63,180.55,3.01]
[1755508104829,2.88,180.61,180.55,3.01]
[1755508105126,2.88,180.59,180.55,3.01]
[1755508105526,2.88,180.59,180.53,3.01]
[1755508107120,2.88,180.59,180.54,3.01]
[1755508107326,2.88,180.63,180.54,3.01]
[1755508107621,2.88,180.61,180.54,3.01]
[1755508107828,4.15570025,180.6,180.54,3.01]
[1755508108125,2.88,180.59,180.54,3.01]
[1755508110131,2.88,180.59,180.52,3.01]
[1755508110337,2.88,180.61,180.55,3.01]
[1755508110536,2.88,180.61,180.58,3.01]
[1755508110837,0.96372196,180.65,180.58,3.01]
[1755508111035,2.88,180.59,180.58,3.01]
[1755508111936,0.96372196,180.65,180.58,3.01]
[1755508112236,2.88,180.6,180.59,3.01]
[1755508112936,0.96372196,180.65,180.59,3.01]
[1755508113139,4.12480661,180.64,180.58,3.01]
[1755508113344,2.88,180.62,180.58,3.01]
[1755508113832,2.88,180.64,180.58,3.01]
[1755508116538,4.12384406,180.63,180.53,3.01]
[1755508116835,2.88,180.61,180.53,3.01]
[1755508117631,22.15659157,180.65,180.53,3.01]
[1755508117632,4.12343058,180.6,180.53,3.01]
[1755508117938,2.88,180.59,180.53,3.01]
[1755508120540,2.88,180.59,180.55,4.57286961]
[1755508120742,2.88,180.59,180.56,3.01]
[1755508120939,0.96372196,180.65,180.55,4.57286961]
[1755508121140,2.88,180.58,180.56,3.01]
[1755508121542,2.88,180.58,180.57,3.01]
[1755508122348,2.88,180.58,180.54,3.01]
[1755508122644,5.53659157,180.65,180.55,4.57286961]
[1755508122645,2.88,180.64,180.55,4.57286961]
[1755508122946,2.88,180.62,180.56,3.01]
[1755508123444,2.88,180.61,180.58,3.01]
[1755508123645,136.96,180.66,180.58,3.01]
[1755508123940,2.88,180.64,180.56,3.01]
[1755508124145,2.88,180.62,180.56,3.01]
[1755508124344,2.88,180.62,180.53,4.57286961]
[1755508124545,2.88,180.62,180.54,3.01]
[1755508128049,2.88,180.62,180.54,8.5457]
[1755508128350,2.88,180.61,180.56,3.01]
[1755508128549,2.88,180.61,180.56,8.545]
[1755508128746,2.88,180.63,180.59,3.01]
[1755508129350,2.88,180.62,180.58,4.57286961]
[1755508129547,2.88,180.62,180.6,3.01]
[1755508129746,2.88,180.62,180.58,4.57286961]
[1755508129947,2.88,180.62,180.61,3.01]
[1755508131250,2.88,180.65,180.62,3.01]
[1755508131552,2.88,180.64,180.63,3.01]
[1755508134551,3.03,180.63,180.62,3.07663174]
[1755508138357,8.563,180.63,180.62,3.07663174]
[1755508139555,5.533,180.63,180.62,3.07663174]
[1755508139863,3.03,180.67,180.62,3.07663174]
[1755508140360,3.03,180.69,180.62,0.03663174]
[1755508140556,3.03,180.67,180.62,0.03663174]
[1755508140855,3.03,180.67,180.62,3.07663174]
[1755508141059,3.03,180.67,180.62,0.03663174]
[1755508141956,3.03,180.67,180.62,3.07663174]
[1755508142356,3.03,180.67,180.62,0.03663174]
[1755508142560,3.03,180.66,180.65,3.04]
[1755508142957,508.9,180.7,180.63,3.04]
[1755508143160,3.03,180.65,180.61,4.57286961]
[1755508143358,3.03,180.69,180.64,3.04]
[1755508143558,3.03,180.69,180.65,3.04]
[1755508143760,3.03,180.69,180.63,3.04]
[1755508145560,4.10125546,180.68,180.61,3.04]
[1755508145769,3.03,180.67,180.61,3.04]
[1755508148662,3.03,180.67,180.59,7.61286961]
[1755508149265,3.03,180.67,180.6,3.04]
[1755508149463,4.10571754,180.66,180.58,3.04]
[1755508149663,3.03,180.64,180.58,3.04]
[1755508150665,3.03,180.64,180.55,5.5353]
[1755508150666,3.03,180.64,180.55,3.04]
[1755508151061,3.03,180.64,180.54,4.57286961]
[1755508151267,3.03,180.64,180.45,149.21362282]
[1755508151268,3.03,180.62,180.51,3.04]
[1755508151468,4.10467609,180.61,180.51,3.04]
[1755508151668,3.03,180.59,180.51,3.04]
[1755508152671,3.03,180.59,180.52,3.04]
[1755508152870,3.03,180.59,180.53,3.04]
[1755508154463,3.03,180.59,180.53,5.5359]
[1755508154663,136.76,180.6,180.54,3.04]
[1755508154864,80.85412913,180.66,180.55,4.57286961]
[1755508155069,3.03,180.62,180.56,8.5751]
[1755508155270,136.76,180.65,180.57,3.04]
[1755508155470,4.10582796,180.64,180.55,10.10816961]
[1755508155672,3.03,180.62,180.56,3.04]
[1755508158080,3.03,180.62,180.57,0.04197093]
[1755508158584,3.03,180.62,180.57,3.08197093]
[1755508159282,3.03,180.62,180.57,0.04197093]
[1755508160277,4.10480958,180.61,180.57,0.04197093]
[1755508160477,3.03,180.62,180.57,0.04197093]
[1755508160678,4.1049616,180.61,180.57,0.04197093]
[1755508160976,7.1349616,180.6,180.57,0.04197093]
[1755508161180,3.03,180.59,180.57,0.04197093]
[1755508162888,136.76,180.59,180.57,0.04197093]
[1755508163091,3.19,180.58,180.57,0.04197093]
[1755508170898,3.19,180.57,180.5,3.09]
[1755508172186,3.19,180.54,180.47,4.57286961]
[1755508172394,3.19,180.54,180.51,3.09]
[1755508173189,3.19,180.54,180.47,4.57286961]
[1755508173390,3.19,180.54,180.48,3.09]
[1755508176495,3.19,180.54,180.49,3.09]
[1755508176692,3.19,180.53,180.49,3.09]
[1755508177088,136.78,180.52,180.36,12.43362282]
[1755508177291,136.78,180.52,180.29,22.1734]
[1755508177292,3.19,180.5,180.41,3.09]
[1755508177986,0.0405209,180.47,180.41,3.09]
[1755508178293,0.0405209,180.47,180.41,8.6297]
[1755508178488,0.0405209,180.47,180.41,5.5397]
[1755508178691,0.0405209,180.47,180.42,3.09]
[1755508178892,3.19,180.46,180.42,3.09]
[1755508179091,3.19,180.46,180.44,3.09]
[1755508179288,3.19,180.46,180.43,3.09]
[1755508179789,0.0405209,180.47,180.44,3.09]
[1755508180095,0.0405209,180.47,180.43,3.09]
[1755508180096,3.19,180.44,180.43,3.09]
[1755508180492,136.8,180.47,180.4,4.57286961]
[1755508180690,3.23067227,180.45,180.41,3.09]
[1755508181192,3.19,180.44,180.41,3.09]
[1755508182193,0.04067227,180.45,180.41,3.09]
[1755508182694,3.23067227,180.45,180.41,3.09]
[1755508183293,3.19,180.44,180.41,3.09]
[1755508186999,3.19,180.43,180.42,3.09]
[1755508187499,3.23067227,180.45,180.42,3.09]
[1755508187791,0.04067227,180.45,180.42,3.09]
[1755508187996,0.04067227,180.45,180.39,10.11316961]
[1755508188199,3.19,180.44,180.43,3.09]
[1755508188892,0.04067227,180.45,180.39,4.57286961]
[1755508189097,3.19,180.43,180.4,3.09]
[1755508189892,0.04067227,180.45,180.4,3.09]
[1755508190098,3.19,180.44,180.4,3.09]
[1755508191804,3.19,180.43,180.4,3.09]
[1755508193605,3.08,180.42,180.4,3.09]
[1755508194407,0.04067227,180.45,180.4,3.09]
[1755508194595,3.08,180.44,180.4,3.09]
[1755508194802,3.08,180.43,180.4,3.09]
[1755508195407,3.08,180.44,180.4,3.16]
[1755508196011,3.12067227,180.45,180.4,3.16]
[1755508196207,3.12067227,180.45,180.41,3.16]
[1755508196508,3.12067227,180.45,180.39,7.73286961]
[1755508197409,3.12067227,180.45,180.4,3.19636119]
[1755508197804,3.12067227,180.45,180.4,0.03636119]
[1755508198308,3.12067227,180.45,180.4,3.19636119]
[1755508199308,3.12067227,180.45,180.4,0.03636119]
[1755508199509,3.12067227,180.45,180.4,3.19636119]
[1755508199911,136.86067227,180.45,180.4,3.19636119]
[1755508200105,3.08,180.44,180.4,3.19636119]
[1755508200705,3.08,180.43,180.41,3.16]
[1755508201009,3.08,180.44,180.41,3.16]
[1755508202002,3.08,180.44,180.42,3.16]
[1755508202212,3.08,180.43,180.42,3.16]
[1755508202409,3.08,180.43,180.4,0.03636119]
[1755508202606,3.08,180.44,180.4,0.03636119]
[1755508202805,3.08,180.44,180.41,3.16]
[1755508204411,3.08,180.44,180.42,3.16]
[1755508205312,3.08,180.44,180.4,0.03636119]
[1755508205509,3.08,180.44,180.41,3.16]
[1755508206713,0.04067227,180.45,180.41,3.16]
[1755508207013,3.08,180.43,180.42,3.16]
[1755508209218,0.04067227,180.45,180.42,3.16]
[1755508209419,3.12067227,180.45,180.42,3.16]
[1755508209814,3.12067227,180.45,180.42,5.5393]
[1755508210014,3.12067227,180.45,180.4,4.6092308]
[1755508210015,3.12067227,180.45,180.43,3.16]
[1755508210221,0.04067227,180.45,180.43,7.73286961]
[1755508210423,3.08,180.51,180.45,3.16]
[1755508211921,3.08,180.51,180.47,3.16]
[1755508212124,3.08,180.51,180.48,3.16]
[1755508213125,3.08,180.54,180.47,3.16]
[1755508213723,3.08,180.54,180.47,8.6977]
[1755508213922,3.08,180.54,180.48,3.16]
[1755508215026,3.08,180.54,180.5,3.16]
[1755508215732,3.08,180.54,180.5,3.20019621]
[1755508216825,3.08,180.54,180.5,0.04019621]
[1755508217035,3.08,180.53,180.5,3.20019621]
[1755508217225,3.08,180.52,180.5,0.04019621]
[1755508217523,3.08,180.52,180.51,3.16]
[1755508218033,3.08,180.51,180.5,3.20019621]
[1755508220432,3.08,180.52,180.5,0.04019621]
[1755508224334,0.03501265,180.53,180.51,3.15]
[1755508224529,2.91501265,180.53,180.51,3.15]
[1755508224733,2.91501265,180.53,180.52,3.15]
[1755508226036,2.91501265,180.53,180.5,0.04019621]
[1755508226234,2.88,180.52,180.51,3.15]
[1755508229335,2.88,180.52,180.5,0.04019621]
[1755508237643,0.03501265,180.53,180.5,3.19019621]
[1755508238037,2.88,180.52,180.51,3.15]
[1755508238642,2.88,180.52,180.5,0.04019621]
[1755508239941,0.03501265,180.53,180.5,0.04019621]
[1755508240240,2.88,180.52,180.5,0.04019621]
[1755508244744,0.03501265,180.53,180.5,0.04019621]
[1755508245047,0.03501265,180.53,180.5,3.19019621]
[1755508245242,2.88,180.52,180.5,3.19019621]
[1755508245844,2.88,180.52,180.51,3.15]
[1755508246244,2.88,180.52,180.5,0.04019621]
[1755508246550,2.88,180.51,180.5,3.19019621]
[1755508246749,2.88,180.51,180.5,0.04019621]
[1755508247147,2.88,180.51,180.5,3.19019621]
[1755508247748,2.88,180.51,180.5,0.04019621]
[1755508247945,0.03501265,180.53,180.5,0.04019621]
[1755508248350,2.88,180.52,180.51,3.15]
[1755508248751,2.88,180.52,180.5,3.19019621]
[1755508248951,2.88,180.51,180.5,3.19019621]
[1755508249353,2.88,180.51,180.5,0.04019621]
[1755508253948,7.04563635,180.51,180.5,0.04019621]
[1755508254149,4.16563635,180.51,180.5,0.04019621]
[1755508254348,7.07563635,180.51,180.5,0.04019621]
[1755508257269,4.16563635,180.51,180.45,2.92]
[1755508257466,7.07776851,180.5,180.42,4.57286961]
[1755508257769,2.91,180.49,180.43,2.92]
[1755508258663,2.94514131,180.48,180.43,2.92]
[1755508258862,2.94514131,180.48,180.43,5.5389]
[1755508259162,2.94514131,180.48,180.44,2.92]
[1755508259568,0.03514131,180.48,180.44,2.92]
[1755508260271,0.03514131,180.48,180.46,2.92]
[1755508260768,2.91,180.5,180.46,2.92]
[1755508260976,0.040806,180.49,180.46,2.92]
[1755508261668,2.950806,180.49,180.46,2.92]
[1755508261869,0.040806,180.49,180.46,2.92]
[1755508262068,2.91,180.48,180.47,2.92]
[1755508262471,2.91,180.48,180.44,4.57286961]
[1755508262472,2.91,180.47,180.45,2.92]
[1755508265773,0.03590904,180.49,180.45,2.92]
[1755508265977,2.91,180.48,180.45,2.92]
[1755508266977,2.91,180.47,180.45,2.92]
[1755508268373,2.91,180.47,180.46,2.92]
[1755508271179,2.91,180.48,180.44,2.92]
[1755508274077,0.03590904,180.49,180.44,2.92]
[1755508274282,2.91,180.47,180.45,2.92]
[1755508275383,2.91,180.47,180.44,5.5388]
[1755508275583,2.91,180.46,180.44,5.5388]
[1755508275882,2.91,180.47,180.44,5.5388]
[1755508276184,2.91,180.47,180.45,2.92]
[1755508276395,2.91,180.46,180.45,2.92]
[1755508276984,2.91,180.48,180.45,2.92]
[1755508277187,2.91,180.47,180.45,2.92]
[1755508279782,0.03590904,180.49,180.45,2.92]
[1755508279977,0.03590904,180.49,180.46,4.57286961]
[1755508280282,2.91,180.47,180.46,4.57286961]
[1755508281284,2.91,180.47,180.44,2.92]
[1755508283383,2.91,180.47,180.43,4.57286961]
[1755508283589,2.91,180.47,180.43,7.45286961]
[1755508283984,2.91,180.47,180.44,2.88]
[1755508285894,0.03863375,180.46,180.41,2.88]
[1755508286094,0.03863375,180.46,180.41,5.5395]
[1755508286294,3.16,180.44,180.42,2.88]
[1755508287894,0.03863375,180.46,180.4,4.57286961]
[1755508288094,0.03863375,180.46,180.44,2.88]
[1755508288289,0.03863375,180.46,180.44,4.57286961]
[1755508288502,3.19863375,180.46,180.45,2.88]
[1755508288694,3.19863375,180.46,180.44,7.45286961]
[1755508288895,3.16,180.45,180.44,4.57286961]
[1755508289502,3.16,180.45,180.44,7.45286961]
[1755508290497,3.16,180.45,180.44,2.88]
[1755508290699,3.16,180.45,180.42,4.57286961]
[1755508290898,3.16,180.45,180.42,7.45286961]
[1755508291290,22.7864783,180.56,180.42,4.57286961]
[1755508291497,3.16,180.44,180.39,4.57286961]
[1755508291703,3.16,180.44,180.4,2.88]
[1755508292209,3.16,180.42,180.4,2.88]
[1755508293308,3.16,180.41,180.39,4.57286961]
[1755508293907,3.16,180.41,180.39,7.45286961]
[1755508294408,3.16,180.42,180.4,2.88]
[1755508294908,3.16,180.42,180.39,7.45286961]
[1755508295103,3.16,180.42,180.4,2.88]
[1755508295905,0.03657462,180.43,180.39,4.57286961]